bitfinex/quotes_BTCUSD_20251011
["timestamp","ask_amount","ask_price","bid_price","bid_amount"]
[1760219345794,0.1798076,111230.0,111220.0,0.27344071]
[1760219346207,0.1798076,111230.0,111220.0,0.31374071]
[1760219347023,0.1798076,111230.0,111220.0,0.31474071]
[1760219347239,0.19655959,111240.0,111220.0,0.81435173]
[1760219347460,0.1798076,111230.0,111220.0,0.81435173]
[1760219348747,0.1798076,111230.0,111220.0,0.81335173]
[1760219350046,0.1798076,111230.0,111220.0,0.81435173]
[1760219351059,0.1798076,111230.0,111220.0,0.31574071]
[1760219351252,0.1798076,111230.0,111220.0,0.81435173]
[1760219352194,0.1798076,111230.0,111220.0,0.31574071]
[1760219352353,0.1798076,111230.0,111220.0,0.81435173]
[1760219354521,0.27029916,111240.0,111220.0,0.81435173]
[1760219354685,0.1798076,111230.0,111220.0,0.81435173]
[1760219355248,0.2377676,111230.0,111220.0,0.75158173]
[1760219355454,0.2377676,111230.0,111220.0,0.57075796]
[1760219355631,0.3025176,111230.0,111220.0,0.57075796]
[1760219355871,0.3025176,111230.0,111220.0,0.50019796]
[1760219356282,0.2377676,111230.0,111220.0,0.54049796]
[1760219356485,0.2377676,111230.0,111220.0,0.54149796]
[1760219356922,0.2377676,111230.0,111220.0,0.57401796]
[1760219357955,0.1973776,111230.0,111220.0,0.63678796]
[1760219358209,0.2377676,111230.0,111220.0,0.13817694]
[1760219358444,0.2377676,111230.0,111220.0,0.63678796]
[1760219358664,0.2377676,111230.0,111220.0,0.57401796]
[1760219359635,0.2377676,111230.0,111220.0,0.63622721]
[1760219360578,0.2377676,111230.0,111220.0,0.07540694]
[1760219360821,0.2377676,111230.0,111220.0,0.63622721]
[1760219361223,0.2864541,111240.0,111220.0,0.63622721]
[1760219361419,0.1798076,111230.0,111220.0,0.07540694]
[1760219361623,0.1798076,111230.0,111220.0,0.13817694]
[1760219362031,0.1798076,111230.0,111220.0,0.13717694]
[1760219362506,0.1798076,111230.0,111220.0,0.69799721]
[1760219363231,0.1798076,111230.0,111220.0,0.63622721]
[1760219363572,0.1798076,111230.0,111220.0,0.69899721]
[1760219363956,0.2196376,111230.0,111220.0,0.69899721]
[1760219364211,0.2196376,111230.0,111220.0,0.63622721]
[1760219368320,0.2196376,111230.0,111220.0,0.56340721]
[1760219369164,0.2196376,111230.0,111220.0,0.60370721]
[1760219371140,0.2196376,111230.0,111220.0,0.63622721]
[1760219374057,0.2196376,111230.0,111220.0,0.56340721]
[1760219375047,0.2196376,111230.0,111220.0,0.60293721]
[1760219378767,0.2196376,111230.0,111220.0,0.56340721]
[1760219378977,0.2445376,111230.0,111220.0,0.56340721]
[1760219379412,0.29150657,111230.0,111220.0,0.56340721]
[1760219380507,0.2445376,111230.0,111220.0,0.56340721]
[1760219386686,0.2445376,111230.0,111220.0,0.00258694]
[1760219386930,0.2445376,111230.0,111220.0,0.56340721]
[1760219392674,0.2445376,111230.0,111220.0,0.00258694]
[1760219392893,0.2445376,111230.0,111220.0,0.56340721]
[1760219396811,0.2445376,111230.0,111220.0,0.00258694]
[1760219398403,0.27158581,111230.0,111220.0,0.00258694]
[1760219400476,0.17982377,111220.0,111210.0,0.77111012]
[1760219400689,0.21618377,111220.0,111210.0,0.81290012]
[1760219400899,0.21618377,111220.0,111210.0,1.37372039]
[1760219401118,0.21618377,111220.0,111210.0,1.37527275]
[1760219401335,0.24323198,111220.0,111210.0,1.37527275]
[1760219401791,0.24323198,111220.0,111210.0,1.37627275]
[1760219401995,0.24323198,111220.0,111210.0,1.37727275]
[1760219403492,0.28802594,111220.0,111210.0,1.37727275]
[1760219403939,0.24323198,111220.0,111210.0,1.37727275]
[1760219404520,0.24323198,111220.0,111210.0,1.44160275]
[1760219405025,0.20687198,111220.0,111210.0,1.44160275]
[1760219406125,0.17982377,111220.0,111210.0,1.44160275]
[1760219406930,0.20687198,111220.0,111210.0,1.44160275]
[1760219408574,0.24323198,111220.0,111210.0,1.44160275]
[1760219410108,0.20687198,111220.0,111210.0,1.44160275]
[1760219410671,0.24323198,111220.0,111210.0,1.37727275]
[1760219410871,0.28802594,111220.0,111210.0,1.37727275]
[1760219411451,0.24323198,111220.0,111210.0,1.37727275]
[1760219412233,0.20687198,111220.0,111210.0,1.44160275]
[1760219412454,0.24323198,111220.0,111210.0,1.1251929]
[1760219412679,0.24323198,111220.0,111210.0,1.1944829]
[1760219413101,0.24323198,111220.0,111210.0,1.2588129]
[1760219413924,0.24323198,111220.0,111210.0,0.03415236]
[1760219414140,0.24323198,111220.0,111210.0,1.2588129]
[1760219414337,0.20687198,111220.0,111210.0,1.2588129]
[1760219414742,0.28417294,111220.0,111210.0,1.2588129]
[1760219415392,0.24323198,111220.0,111210.0,1.1944829]
[1760219421659,0.24323198,111220.0,111210.0,0.5714223]
[1760219426142,0.24323198,111220.0,111210.0,0.09085236]
[1760219426350,0.24323198,111220.0,111210.0,0.5714223]
[1760219427255,0.24323198,111220.0,111210.0,0.00355236]
[1760219427646,0.24323198,111220.0,111210.0,0.5408223]
[1760219428075,0.24323198,111220.0,111210.0,0.5714223]
[1760219432859,0.24323198,111220.0,111210.0,0.07284236]
[1760219433064,0.24323198,111220.0,111210.0,0.5714223]
[1760219435709,0.24323198,111220.0,111210.0,0.5021323]
[1760219435922,0.24323198,111220.0,111210.0,0.5428123]
[1760219438241,0.24323198,111220.0,111210.0,0.5021323]
[1760219439466,0.25547636,111220.0,111210.0,0.5021323]
[1760219439673,0.26407198,111220.0,111210.0,0.00355236]
[1760219439878,0.24323198,111220.0,111210.0,0.00355236]
[1760219440036,0.24323198,111220.0,111210.0,0.5021323]
[1760219440611,0.24323198,111220.0,111210.0,0.5428123]
[1760219440815,0.26407198,111220.0,111210.0,0.5021323]
[1760219441435,0.24323198,111220.0,111210.0,0.5021323]
[1760219441637,0.24323198,111220.0,111210.0,0.5410623]
[1760219442123,0.24323198,111220.0,111210.0,0.00355236]
[1760219442325,0.24323198,111220.0,111210.0,0.5021323]
[1760219444689,0.26322198,111220.0,111210.0,0.5021323]
[1760219446286,0.24323198,111220.0,111210.0,0.5021323]
[1760219446572,0.26322198,111220.0,111210.0,0.5021323]
[1760219448002,0.24323198,111220.0,111210.0,0.5410623]
[1760219448205,0.24323198,111220.0,111210.0,0.5710123]
[1760219448407,0.24323198,111220.0,111210.0,0.5021323]
[1760219448609,0.26322198,111220.0,111210.0,0.5021323]
[1760219449717,0.24323198,111220.0,111210.0,0.5021323]
[1760219450133,0.26322198,111220.0,111210.0,0.5021323]
[1760219450315,0.24323198,111220.0,111210.0,0.5021323]
[1760219452272,0.26322198,111220.0,111210.0,0.5021323]
[1760219452717,0.2680395,111220.0,111210.0,0.5021323]
[1760219452891,0.2680395,111220.0,111210.0,0.5410623]
[1760219453111,0.2680395,111220.0,111210.0,0.5021323]
[1760219453721,0.24323198,111220.0,111210.0,0.5021323]
[1760219454220,0.26322198,111220.0,111210.0,0.5021323]
[1760219454640,0.26322198,111220.0,111210.0,0.00355236]
[1760219454849,0.26322198,111220.0,111210.0,0.5021323]
[1760219459463,0.24323198,111220.0,111210.0,0.00355236]
[1760219459606,0.24323198,111220.0,111210.0,0.5021323]
[1760219460310,0.24323198,111220.0,111210.0,0.00355236]
[1760219460511,0.24323198,111220.0,111210.0,0.5021323]
[1760219460896,0.28935376,111220.0,111210.0,0.5021323]
[1760219461648,0.26197198,111220.0,111210.0,0.5021323]
[1760219462939,0.24323198,111220.0,111210.0,0.5021323]
[1760219467195,0.26197198,111220.0,111210.0,0.5021323]
[1760219467394,0.24323198,111220.0,111210.0,0.5021323]
[1760219467757,0.26197198,111220.0,111210.0,0.5021323]
[1760219468201,0.30809376,111220.0,111210.0,0.5021323]
[1760219468701,0.26197198,111220.0,111210.0,0.5021323]
[1760219469597,0.24323198,111220.0,111210.0,0.5021323]
[1760219470949,0.24323198,111220.0,111210.0,0.5437523]
[1760219471155,0.24323198,111220.0,111210.0,0.5021323]
[1760219471478,0.26197198,111220.0,111210.0,0.5021323]
[1760219474472,0.07066953,111220.0,111210.0,0.5021323]
[1760219474672,0.2504933,111220.0,111210.0,0.5021323]
[1760219475589,0.2504933,111220.0,111210.0,0.5011323]
[1760219475705,0.2317533,111220.0,111210.0,0.5700823]
[1760219477027,0.2317533,111220.0,111210.0,0.6322523]
[1760219477438,0.2317533,111220.0,111210.0,0.5700823]
[1760219483616,0.2317533,111220.0,111210.0,1.19334818]
[1760219487307,0.2317533,111220.0,111210.0,0.07150236]
[1760219487604,0.2317533,111220.0,111210.0,1.19334818]
[1760219491994,0.2235833,111220.0,111210.0,1.19334818]
[1760219495370,0.2235833,111220.0,111210.0,1.25519818]
[1760219495603,0.2235833,111220.0,111210.0,1.19334818]
[1760219496531,0.02648765,111220.0,111210.0,1.19334818]
[1760219496678,0.20631142,111220.0,111210.0,1.19334818]
[1760219498299,0.23335973,111220.0,111210.0,1.19334818]
[1760219500816,0.18253037,111220.0,111210.0,1.19334818]
[1760219501028,0.17982377,111220.0,111210.0,1.19334818]
[1760219501436,0.17982377,111220.0,111210.0,1.27705649]
[1760219510501,0.17982377,111220.0,111210.0,1.45689643]
[1760219511411,0.17982377,111220.0,111210.0,1.27705649]
[1760219511941,0.17982377,111220.0,111210.0,0.15521067]
[1760219512157,0.17982377,111220.0,111210.0,1.27705649]
[1760219513068,0.17982377,111220.0,111210.0,1.45689643]
[1760219515635,0.17982377,111220.0,111210.0,0.33505061]
[1760219515876,0.17982377,111220.0,111210.0,1.45689643]
[1760219533817,0.17982377,111220.0,111210.0,0.33505061]
[1760219534221,0.17982377,111220.0,111210.0,1.45689643]
[1760219538567,0.17982377,111220.0,111210.0,0.33505061]
[1760219538777,0.17982377,111220.0,111210.0,1.45689643]
[1760219539493,0.17982377,111220.0,111210.0,0.33505061]
[1760219539696,0.17982377,111220.0,111210.0,1.45689643]
[1760219542169,0.17958551,111220.0,111210.0,1.45689643]
[1760219542704,0.17958551,111220.0,111210.0,0.33505061]
[1760219542935,0.17958551,111220.0,111210.0,1.45689643]
[1760219543658,0.17958551,111220.0,111210.0,0.83362954]
[1760219546356,0.17958551,111220.0,111210.0,0.6537896]
[1760219547922,0.17958551,111220.0,111210.0,0.15521067]
[1760219548166,0.17958551,111220.0,111210.0,0.6537896]
[1760219549205,0.17958551,111220.0,111210.0,0.15521067]
[1760219549426,0.17958551,111220.0,111210.0,0.6537896]
[1760219550234,0.22200965,111220.0,111210.0,0.6537896]
[1760219550912,0.17958551,111220.0,111210.0,0.6537896]
[1760219556880,0.17958551,111220.0,111210.0,0.09855067]
[1760219557091,0.17958551,111220.0,111210.0,0.6552896]
[1760219559939,0.17253551,111220.0,111210.0,0.6552896]
[1760219562055,0.17253551,111220.0,111210.0,0.5271796]
[1760219562463,0.17253551,111220.0,111210.0,0.5643596]
[1760219562932,0.21425465,111220.0,111210.0,0.5917896]
[1760219563741,0.17253551,111220.0,111210.0,0.5917896]
[1760219563968,0.17253551,111220.0,111210.0,0.6480396]
[1760219565087,0.24465591,111230.0,111210.0,0.6480396]
[1760219565325,0.24465591,111230.0,111210.0,0.82631875]
[1760219565559,0.24465591,111230.0,111220.0,0.0009653]
[1760219567464,0.29058969,111230.0,111220.0,0.0009653]
[1760219568088,0.24465591,111230.0,111220.0,0.0009653]
[1760219574803,0.06484831,111230.0,111220.0,0.0009653]
[1760219575139,0.24465591,111230.0,111220.0,0.0009653]
[1760219576102,0.2176076,111230.0,111220.0,0.0009653]
[1760219576300,0.24465591,111230.0,111220.0,0.0009653]
[1760219576837,0.28864603,111230.0,111220.0,0.0009653]
[1760219577774,0.24465591,111230.0,111220.0,0.0009653]
[1760219596994,0.26153026,111230.0,111220.0,0.0009653]
[1760219598393,0.24465591,111230.0,111220.0,0.0009653]
[1760219599283,0.58465591,111230.0,111220.0,0.0009653]
[1760219599486,0.60409253,111230.0,111220.0,0.0009653]
[1760219599688,0.69281187,111230.0,111220.0,0.0009653]
[1760219600188,0.70968334,111230.0,111220.0,0.0009653]
[1760219603567,1.27076325,111230.0,111220.0,0.0009653]
[1760219604134,1.09095565,111230.0,111220.0,0.0009653]
[1760219604322,1.27076325,111230.0,111220.0,0.0009653]
[1760219613284,1.25132663,111230.0,111220.0,0.0009653]
[1760219613484,1.27075808,111230.0,111220.0,0.0009653]
[1760219617567,1.18203874,111230.0,111220.0,0.0009653]
[1760219620117,1.19047328,111230.0,111220.0,0.0009653]
[1760219628161,0.62939337,111230.0,111220.0,0.0009653]
[1760219628367,1.19047328,111230.0,111220.0,0.0009653]
[1760219629675,0.62939337,111230.0,111220.0,0.0009653]
[1760219629876,1.27859609,111230.0,111220.0,0.0009653]
[1760219630365,1.27860067,111230.0,111220.0,0.0009653]
[1760219633362,1.30288999,111230.0,111220.0,0.0009653]
[1760219639845,0.74181008,111230.0,111220.0,0.0009653]
[1760219640259,1.30288999,111230.0,111220.0,0.0009653]
[1760219643834,1.30291634,111230.0,111220.0,0.0009653]
[1760219644026,0.74183643,111230.0,111220.0,0.0009653]
[1760219644232,1.30291634,111230.0,111220.0,0.0009653]
[1760219646933,0.74183643,111230.0,111220.0,0.0009653]
[1760219647211,1.30291634,111230.0,111220.0,0.0009653]
[1760219649144,0.74183643,111230.0,111220.0,0.0009653]
[1760219649350,1.30291634,111230.0,111220.0,0.0009653]
[1760219650766,0.74183643,111230.0,111220.0,0.0009653]
[1760219657780,1.30291634,111230.0,111220.0,0.0009653]
[1760219661312,5.55333622,111230.0,111220.0,0.0009653]
[1760219661514,5.58563631,111230.0,111220.0,0.0009653]
[1760219661718,1.39036831,111230.0,111220.0,0.0009653]
[1760219661926,5.59033619,111230.0,111220.0,0.0009653]
[1760219662212,5.56603223,111230.0,111220.0,0.0009653]
[1760219662409,1.39606309,111230.0,111220.0,0.0009653]
[1760219662620,5.61624985,111230.0,111220.0,0.0009653]
[1760219662837,5.64040113,111230.0,111220.0,0.0009653]
[1760219663054,1.44613313,111230.0,111220.0,0.0009653]
[1760219663270,5.64140113,111230.0,111220.0,0.0009653]
[1760219663505,5.08032122,111230.0,111220.0,0.0009653]
[1760219663722,5.57922544,111230.0,111220.0,0.0009653]
[1760219663928,1.38395744,111230.0,111220.0,0.0009653]
[1760219664085,5.57922544,111230.0,111220.0,0.0009653]
[1760219664693,1.38395744,111230.0,111220.0,0.0009653]
[1760219665026,5.57922544,111230.0,111220.0,0.0009653]
[1760219666185,5.57921097,111230.0,111220.0,0.0009653]
[1760219667226,1.33549283,111230.0,111220.0,0.0009653]
[1760219667430,5.53076083,111230.0,111220.0,0.0009653]
[1760219667833,1.33549283,111230.0,111220.0,0.0009653]
[1760219668029,5.53076083,111230.0,111220.0,0.0009653]
[1760219668939,1.33549283,111230.0,111220.0,0.0009653]
[1760219669143,5.57921097,111230.0,111220.0,0.0009653]
[1760219670244,5.53076083,111230.0,111220.0,0.0009653]
[1760219672029,1.38394297,111230.0,111220.0,0.0009653]
[1760219672234,5.53076083,111230.0,111220.0,0.0009653]
[1760219672450,5.63076082,111230.0,111220.0,0.0009653]
[1760219672673,5.53076083,111230.0,111220.0,0.0009653]
[1760219673116,5.63076082,111230.0,111220.0,0.0009653]
[1760219673783,1.43549282,111230.0,111220.0,0.0009653]
[1760219674233,5.63076082,111230.0,111220.0,0.0009653]
[1760219674384,1.48394296,111230.0,111220.0,0.0009653]
[1760219674771,5.67921096,111230.0,111220.0,0.0009653]
[1760219675150,5.67919707,111230.0,111220.0,0.0009653]
[1760219675305,1.48392907,111230.0,111220.0,0.0009653]
[1760219675502,5.67919707,111230.0,111220.0,0.0009653]
[1760219676373,1.22214403,111230.0,111220.0,0.0009653]
[1760219676543,5.44166509,111230.0,111220.0,0.0009653]
[1760219676750,5.46872233,111230.0,111220.0,0.0009653]
[1760219679375,1.27345433,111230.0,111220.0,0.0009653]
[1760219679574,5.46872233,111230.0,111220.0,0.0009653]
[1760219679981,1.27345433,111230.0,111220.0,0.0009653]
[1760219680163,5.46872233,111230.0,111220.0,0.0009653]
[1760219681827,1.27345433,111230.0,111220.0,0.0009653]
[1760219682002,1.2734372,111230.0,111220.0,0.0009653]
[1760219682321,5.4687052,111230.0,111220.0,0.0009653]
[1760219682521,1.2734372,111230.0,111220.0,0.0009653]
[1760219682646,5.4687052,111230.0,111220.0,0.0009653]
[1760219684794,1.2734372,111230.0,111220.0,0.0009653]
[1760219685017,5.4687052,111230.0,111220.0,0.0009653]
[1760219686319,5.52520237,111230.0,111220.0,0.0009653]
[1760219687697,1.32993437,111230.0,111220.0,0.0009653]
[1760219687900,5.52520237,111230.0,111220.0,0.0009653]
[1760219688258,1.29763428,111230.0,111220.0,0.0009653]
[1760219688460,5.29080517,111230.0,111220.0,0.0009653]
[1760219689076,1.09553717,111230.0,111220.0,0.0009653]
[1760219689516,5.29080517,111230.0,111220.0,0.0009653]
[1760219690385,5.63080517,111230.0,111220.0,0.0009653]
[1760219690569,1.43553717,111230.0,111220.0,0.0009653]
[1760219690908,5.63080517,111230.0,111220.0,0.0009653]
[1760219692890,5.60588641,111230.0,111220.0,0.0009653]
[1760219693505,5.63080517,111230.0,111220.0,0.0009653]
[1760219693910,1.43553717,111230.0,111220.0,0.0009653]
[1760219694124,5.63080517,111230.0,111220.0,0.0009653]
[1760219697012,1.43553717,111230.0,111220.0,0.0009653]
[1760219697219,5.63080517,111230.0,111220.0,0.0009653]
[1760219698424,5.64688878,111230.0,111220.0,0.0009653]
[1760219698637,1.45162078,111230.0,111220.0,0.0009653]
[1760219698851,5.64688878,111230.0,111220.0,0.0009653]
[1760219699968,1.45162078,111230.0,111220.0,0.0009653]
[1760219700373,5.64688878,111230.0,111220.0,0.0009653]
[1760219701170,1.45162078,111230.0,111220.0,0.0009653]
[1760219701395,5.64688878,111230.0,111220.0,0.0009653]
[1760219701595,5.64690825,111230.0,111220.0,0.0009653]
[1760219704764,1.45164025,111230.0,111220.0,0.0009653]
[1760219705029,5.64690825,111230.0,111220.0,0.0009653]
[1760219705423,1.45164025,111230.0,111220.0,0.0009653]
[1760219705629,5.64690825,111230.0,111220.0,0.0009653]
[1760219707218,1.45164025,111230.0,111220.0,0.0009653]
[1760219707440,5.64690825,111230.0,111220.0,0.0009653]
[1760219708946,1.45164025,111230.0,111220.0,0.0009653]
[1760219709151,5.64690825,111230.0,111220.0,0.0009653]
[1760219711908,1.45164025,111230.0,111220.0,0.0009653]
[1760219712067,5.64690825,111230.0,111220.0,0.0009653]
[1760219712221,5.64694998,111230.0,111220.0,0.0009653]
[1760219712644,1.45168198,111230.0,111220.0,0.0009653]
[1760219713020,5.64694998,111230.0,111220.0,0.0009653]
[1760219713323,1.45168198,111230.0,111220.0,0.0009653]
[1760219713535,5.64694998,111230.0,111220.0,0.0009653]
[1760219714153,5.64575873,111230.0,111220.0,0.0009653]
[1760219714524,1.45049073,111230.0,111220.0,0.0009653]
[1760219714681,5.62083997,111230.0,111220.0,0.0009653]
[1760219714885,1.45049073,111230.0,111220.0,0.0009653]
[1760219715090,5.64575873,111230.0,111220.0,0.0009653]
[1760219715493,1.45049073,111230.0,111220.0,0.0009653]
[1760219715733,5.64575873,111230.0,111220.0,0.0009653]
[1760219716355,1.45049073,111230.0,111220.0,0.0009653]
[1760219716559,5.64575873,111230.0,111220.0,0.0009653]
[1760219717239,1.45049073,111230.0,111220.0,0.0009653]
[1760219717423,5.64575873,111230.0,111220.0,0.0009653]
[1760219717840,1.45049073,111230.0,111220.0,0.0009653]
[1760219718038,5.64575873,111230.0,111220.0,0.0009653]
[1760219718455,1.45049073,111230.0,111220.0,0.0009653]
[1760219718661,5.64575873,111230.0,111220.0,0.0009653]
[1760219719490,5.62083997,111230.0,111220.0,0.0009653]
[1760219719834,5.64575873,111230.0,111220.0,0.0009653]
[1760219721835,5.62083997,111230.0,111220.0,0.0009653]
[1760219722169,5.64575873,111230.0,111220.0,0.0009653]
[1760219722373,1.45049073,111230.0,111220.0,0.0009653]
[1760219722573,5.64575873,111230.0,111220.0,0.0009653]
[1760219723529,5.62083997,111230.0,111220.0,0.0009653]
[1760219723733,5.64575873,111230.0,111220.0,0.0009653]
[1760219724722,5.42166601,111230.0,111220.0,0.0009653]
[1760219724928,5.60147361,111230.0,111220.0,0.0009653]
[1760219725452,1.40620561,111230.0,111220.0,0.0009653]
[1760219725655,5.66383976,111230.0,111220.0,0.0009653]
[1760219726509,5.56383977,111230.0,111220.0,0.0009653]
[1760219726695,5.66383976,111230.0,111220.0,0.0009653]
[1760219727102,5.10256939,111230.0,111220.0,0.0009653]
[1760219727347,5.66383976,111230.0,111220.0,0.0009653]
[1760219727513,5.638921,111230.0,111220.0,0.0009653]
[1760219727865,5.66383976,111230.0,111220.0,0.0009653]
[1760219728649,5.65539766,111230.0,111220.0,0.0009653]
[1760219728872,5.66383953,111230.0,111220.0,0.0009653]
[1760219729857,5.63892077,111230.0,111220.0,0.0009653]
[1760219730057,1.44365277,111230.0,111220.0,0.0009653]
[1760219730298,5.63892077,111230.0,111220.0,0.0009653]
[1760219730499,1.44365277,111230.0,111220.0,0.0009653]
[1760219730705,5.63892077,111230.0,111220.0,0.0009653]
[1760219731987,1.44365277,111230.0,111220.0,0.0009653]
[1760219732200,5.63892077,111230.0,111220.0,0.0009653]
[1760219732418,1.46857153,111230.0,111220.0,0.0009653]
[1760219732646,5.66383953,111230.0,111220.0,0.0009653]
[1760219732875,5.63892077,111230.0,111220.0,0.0009653]
[1760219733103,5.66383953,111230.0,111220.0,0.0009653]
[1760219733590,1.46857144,111230.0,111220.0,0.0009653]
[1760219733835,5.66383944,111230.0,111220.0,0.0009653]
[1760219734044,1.46857144,111230.0,111220.0,0.0009653]
[1760219734694,5.66383944,111230.0,111220.0,0.0009653]
[1760219734899,1.48460419,111230.0,111220.0,0.0009653]
[1760219735046,5.67987219,111230.0,111220.0,0.0009653]
[1760219735927,1.48460419,111230.0,111220.0,0.0009653]
[1760219736137,5.67987219,111230.0,111220.0,0.0009653]
[1760219738276,1.48460419,111230.0,111220.0,0.0009653]
[1760219738453,5.67987219,111230.0,111220.0,0.0009653]
[1760219738799,1.48460419,111230.0,111220.0,0.0009653]
[1760219739002,5.67987219,111230.0,111220.0,0.0009653]
[1760219740133,5.65495343,111230.0,111220.0,0.0009653]
[1760219740664,1.45968543,111230.0,111220.0,0.0009653]
[1760219740872,5.65495343,111230.0,111220.0,0.0009653]
[1760219741069,1.45968543,111230.0,111220.0,0.0009653]
[1760219741347,5.65495343,111230.0,111220.0,0.0009653]
[1760219741869,5.53343984,111230.0,111220.0,0.0009653]
[1760219742067,5.56049712,111230.0,111220.0,0.0009653]
[1760219744155,5.5604964,111230.0,111220.0,0.0009653]
[1760219745436,1.3652284,111230.0,111220.0,0.0009653]
[1760219745646,5.5604964,111230.0,111220.0,0.0009653]
[1760219746839,1.3652284,111230.0,111220.0,0.0009653]
[1760219747054,5.5604964,111230.0,111220.0,0.0009653]
[1760219747859,1.3652284,111230.0,111220.0,0.0009653]
[1760219748284,5.5604964,111230.0,111220.0,0.0009653]
[1760219749124,1.3652284,111230.0,111220.0,0.0009653]
[1760219749338,5.5604964,111230.0,111220.0,0.0009653]
[1760219751735,5.57652937,111230.0,111220.0,0.0009653]
[1760219752087,5.52807923,111230.0,111220.0,0.0009653]
[1760219752935,1.33281123,111230.0,111220.0,0.0009653]
[1760219753169,5.52807923,111230.0,111220.0,0.0009653]
[1760219754343,1.33281123,111230.0,111220.0,0.0009653]
[1760219754553,5.52807923,111230.0,111220.0,0.0009653]
[1760219754755,1.33281123,111230.0,111220.0,0.0009653]
[1760219754968,5.52807923,111230.0,111220.0,0.0009653]
[1760219757205,6.02807923,111230.0,111220.0,0.0009653]
[1760219758029,1.83281178,111230.0,111220.0,0.0009653]
[1760219758264,6.02807978,111230.0,111220.0,0.0009653]
[1760219759217,1.83281178,111230.0,111220.0,0.0009653]
[1760219759425,6.04753119,111230.0,111220.0,0.0009653]
[1760219762555,1.85226319,111230.0,111220.0,0.0009653]
[1760219762790,6.04753119,111230.0,111220.0,0.0009653]
[1760219763002,1.85226319,111230.0,111220.0,0.0009653]
[1760219763212,5.8657091,111230.0,111220.0,0.0009653]
[1760219763425,5.76711886,111230.0,111220.0,0.0009653]
[1760219763869,5.76711884,111230.0,111220.0,0.0009653]
[1760219764283,1.57185084,111230.0,111220.0,0.0009653]
[1760219764483,5.75397279,111230.0,111220.0,0.0009653]
[1760219765214,1.55870479,111230.0,111220.0,0.0009653]
[1760219765473,6.09397279,111230.0,111220.0,0.0009653]
[1760219765977,1.89870479,111230.0,111220.0,0.0009653]
[1760219766214,6.09397279,111230.0,111220.0,0.0009653]
[1760219767490,1.89870479,111230.0,111220.0,0.0009653]
[1760219767625,6.09397279,111230.0,111220.0,0.0009653]
[1760219767826,1.89870479,111230.0,111220.0,0.0009653]
[1760219768043,6.09397279,111230.0,111220.0,0.0009653]
[1760219768624,1.89870479,111230.0,111220.0,0.0009653]
[1760219769065,6.09397279,111230.0,111220.0,0.0009653]
[1760219769852,1.89870479,111230.0,111220.0,0.0009653]
[1760219770217,6.09397279,111230.0,111220.0,0.0009653]
[1760219770774,1.89870479,111230.0,111220.0,0.0009653]
[1760219771094,6.09397279,111230.0,111220.0,0.0009653]
[1760219771296,1.89870479,111230.0,111220.0,0.0009653]
[1760219771505,6.09397279,111230.0,111220.0,0.0009653]
[1760219772275,1.89870479,111230.0,111220.0,0.0009653]
[1760219772465,6.09397279,111230.0,111220.0,0.0009653]
[1760219773290,6.11018233,111230.0,111220.0,0.0009653]
[1760219773489,1.91491433,111230.0,111220.0,0.0009653]
[1760219773714,6.11018233,111230.0,111220.0,0.0009653]
[1760219774353,1.86628573,111230.0,111220.0,0.0009653]
[1760219775005,6.06155373,111230.0,111220.0,0.0009653]
[1760219776507,1.89117783,111230.0,111220.0,0.0009653]
[1760219777024,6.08644583,111230.0,111220.0,0.0009653]
[1760219777549,0.17987229,111190.0,111180.0,0.0986809]
[1760219777758,0.17987229,111190.0,111180.0,0.65995127]
[1760219778174,0.17987229,111190.0,111180.0,0.62793637]
[1760219778797,0.1799223,111190.0,111180.0,0.62793637]
[1760219779488,0.1799223,111190.0,111180.0,0.029406]
[1760219779705,0.1799223,111190.0,111180.0,0.031406]
[1760219780144,0.1799223,111190.0,111180.0,0.068666]
[1760219781388,0.18880806,111190.0,111180.0,0.068666]
[1760219781599,0.22660806,111190.0,111180.0,0.068666]
[1760219782516,0.22660806,111190.0,111180.0,0.095846]
[1760219782868,0.22660806,111190.0,111180.0,0.65711637]
[1760219783298,0.22660806,111190.0,111180.0,0.62993637]
[1760219784098,0.22660806,111190.0,111180.0,0.095846]
[1760219784940,0.2177223,111190.0,111180.0,0.095846]
[1760219791240,0.1799223,111190.0,111180.0,0.095846]
[1760219793780,0.5199223,111190.0,111180.0,0.095846]
[1760219800727,1.0199223,111190.0,111180.0,0.095846]
[1760219800944,0.84005001,111190.0,111180.0,0.27573446]
[1760219801149,1.0199223,111190.0,111180.0,0.147776]
[1760219801559,1.0199223,111190.0,111180.0,0.64670928]
[1760219802100,1.0199223,111190.0,111180.0,0.147776]
[1760219802337,1.0199223,111190.0,111180.0,0.32766446]
[1760219803584,1.0199223,111190.0,111180.0,0.82659774]
[1760219804631,0.84005001,111190.0,111180.0,0.82659774]
[1760219812729,0.84005001,111190.0,111180.0,0.85159773]
[1760219813700,0.50005001,111190.0,111180.0,0.85159773]
[1760219814525,0.50005001,111190.0,111180.0,0.88174963]
[1760219816826,0.84005001,111190.0,111180.0,0.33088635]
[1760219817131,0.84005001,111190.0,111180.0,0.88174963]
[1760219818514,0.84005001,111190.0,111180.0,0.38281635]
[1760219818724,0.84005001,111190.0,111180.0,0.88174963]
[1760219822951,0.84005001,111190.0,111180.0,0.38281635]
[1760219823993,0.84005001,111190.0,111180.0,0.33088635]
[1760219824203,0.84005001,111190.0,111180.0,0.26644635]
[1760219824429,0.84005001,111190.0,111180.0,0.30070635]
[1760219824842,0.87785001,111190.0,111180.0,0.30070635]
[1760219825758,0.87785001,111190.0,111180.0,0.79963963]
[1760219826163,0.87785001,111190.0,111180.0,0.30070635]
[1760219826709,0.87785001,111190.0,111180.0,0.32761635]
[1760219828942,1.0577223,111190.0,111180.0,0.11757599]
[1760219829167,1.0577223,111190.0,111180.0,0.23629445]
[1760219829168,0.87785001,111190.0,111180.0,0.23629445]
[1760219829786,1.0577223,111190.0,111180.0,0.23629445]
[1760219830943,1.0577223,111190.0,111180.0,0.05640599]
[1760219835187,1.55665558,111190.0,111180.0,0.00434872]
[1760219835365,1.64537492,111190.0,111180.0,0.00434872]
[1760219835954,1.64537492,111190.0,111180.0,0.00334872]
[1760219836160,1.69186516,111190.0,111180.0,0.00334872]
[1760219836381,1.67243613,111190.0,111180.0,0.00334872]
[1760219836944,1.69732823,111190.0,111180.0,0.00234872]
[1760219837736,1.71675157,111190.0,111180.0,0.00234872]
[1760219838223,1.69185947,111190.0,111180.0,0.00234872]
[1760219843088,1.4740384,111190.0,111180.0,0.00234872]
[1760219844966,1.40472819,111190.0,111180.0,0.00234872]
[1760219845963,1.42962029,111190.0,111180.0,0.00234872]
[1760219847513,2.05387387,111190.0,111180.0,0.00234872]
[1760219848000,2.02898177,111190.0,111180.0,0.00234872]
[1760219848618,1.46738834,111190.0,111180.0,0.00234872]
[1760219848828,1.55610768,111190.0,111180.0,0.00234872]
[1760219850722,1.93023947,111190.0,111180.0,0.00234872]
[1760219852669,1.84152013,111190.0,111180.0,0.00234872]
[1760219853460,1.85837226,111190.0,111180.0,0.00234872]
[1760219853732,1.84152013,111190.0,111180.0,0.00234872]
[1760219854201,1.85837251,111190.0,111180.0,0.00234872]
[1760219856971,1.8583799,111190.0,111180.0,0.00234872]
[1760219857185,1.89490308,111190.0,111180.0,0.00234872]
[1760219857899,1.29678647,111190.0,111180.0,0.00234872]